[Event "87th Tata Steel Masters 2025"]
[White "Wei,Yi"]
[Black "Mendonca,Leon Luke"]
[Site "Wijk aan Zee"]
[Round "7.1"]
[Annotator "TA"]
[Result "1/2-1/2"]
[Date "2025.01.25"]
[WhiteElo "2751"]
[BlackElo "2639"]
[PlyCount "80"]
[TimeControl "60"]

{[%evp 16,80,2,8,33,22,36,39,23,10,28,6,-6,-35,-31,-13,-34,-16,-31,-33,-22,-25,-8,-35,-35,-33,-7,-34,0,-10,14,0,0,0,22,0,0,0,15,12,33,22,32,27,25,30,55,5,19,15,25,2,0,0,25,0,0,0,0,0,18,9,20,0,0,0,28]} 1. e4 {[%emt 0:0:6]} e5 {[%emt 0:0:21]} 2. Nf3 {[%emt 0:0:16]} Nc6 {[%emt 0:0:7]} 3. Bb5 {[%emt 0:0:33][%cal Yf1b5,Yb5a4,Ya4b3][%mdl 32]} a6 {[%emt 0:0:7]} 4. Ba4 {[%emt 0:0:7]} Nf6 {[%emt 0:0:27]} 5. Nc3 {[%emt 0:1:10]} b5 {[%emt 0:6:15]} 6. Bb3 {[%emt 0:0:6]} Be7 {[%emt 0:1:26]} 7. d3 {[%emt 0:1:46]} d6 {[%emt 0:1:12]} 8. a3 {[%emt 0:0:23]} O-O {[%emt 0:1:13]} 9. O-O $1 {[%emt 0:1:16] 9.0-0 scores better than 9.Nd5.} h6 {[%emt 0:13:30] C77: Ruy Lopez: 3...a6 4 Ba4 Nf6, unusual lines.} 10. Be3 {[%emt 0:5:4]} Be6 {[%emt 0:2:43]} 11. Nd5 {[%emt 0:1:15]} Qd7 {[%emt 0:1:19] White is slightly better.} 12. Rc1 $146 {[%emt 0:35:22]} (12. h3 Bd8 13. c4 bxc4 14. Nxf6+ Bxf6 15. Ba4 d5 16. exd5 Qxd5 17. dxc4 Qxd1 18. Rfxd1 {½-½ Le,Q (2709)-Caruana,F (2835) Chess24 Banter Blitz Cup Final 2020 (2.2)} )Bd8 {[%emt 0:3:29]} 13. c4 {[%emt 0:3:26]} Na5 {[%emt 0:11:27]} 14. Ba2 {[%emt 0:1:21]} bxc4 {[%emt 0:3:55]} 15. Nxf6+ {[%emt 0:1:42]} Bxf6 {[%emt 0:0:8]} 16. dxc4 {[%emt 0:0:12]} c5 {[%emt 0:6:46]} 17. b4 {[%emt 0:0:39]} cxb4 {[%emt 0:0:51]} 18. axb4 {[%emt 0:0:6]} Nc6 {[%emt 0:0:8]} 19. Rb1 {[%emt 0:5:0]} Rfc8 {[%emt 0:12:8]} 20. Qa4 {[%emt 0:22:18]} Qb7 {[%emt 0:9:47]} 21. Rfd1 {[%emt 0:9:39]} Be7 {[%emt 0:1:2]} 22. h3 {[%emt 0:6:31]} Rcb8 {[%emt 0:13:45][%cal Rc6b4]} 23. Bd2 {[%emt 0:1:3]} Rc8 {[%emt 0:0:36]} 24. Be3 {[%emt 0:0:25]} Rcb8 {[%emt 0:0:16][%cal Rc6b4]} 25. Bd2 {[%emt 0:0:15]} Rc8 {[%emt 0:0:6]} 26. Qc2 {[%emt 0:4:23]} Qc7 {[%emt 0:3:30]} 27. Rdc1 {[%emt 0:2:8]} a5 {[%emt 0:2:8]} 28. b5 {[%emt 0:0:5]} Nb4 {[%emt 0:0:4]} 29. Bxb4 {[%emt 0:0:11]} axb4 {[%emt 0:0:2]} 30. Rxb4 {[%emt 0:6:10]} Qc5 {[%emt 0:2:55]} 31. Ra4 {[%emt 0:1:17]} (31. Rbb1 $14 )Bd8 $11 {[%emt 0:0:4]} 32. Rxa8 {[%emt 0:1:13]} Rxa8 {[%emt 0:0:2]} 33. Bb3 {[%emt 0:0:3]} Bb6 {[%emt 0:0:11]} 34. Rb1 {[%emt 0:1:15]} Rc8 {[%emt 0:3:2][%cal Re6c4]} 35. Rc1 {[%emt 0:0:7]} Ra8 {[%emt 0:0:32] The position is equal.} 36. Ne1 {[%emt 0:0:16]} Ra3 {[%emt 0:0:43][%cal Ya3b3] [#] ...Rxb3! is the strong threat.} 37. Rb1 {[%emt 0:0:46]} Qd4 {[%emt 0:1:29]} 38. Nf3 {[%emt 0:0:12]} Qc5 {[%emt 0:0:12]} 39. Ne1 {[%emt 0:0:1]} Qd4 {[%emt 0:0:21]} 40. Nf3 {[%emt 0:1:50]} Qc5 {[%emt 0:1:58] Weighted Error Value: White=0.11 (very precise) /Black=0.10 (very precise)   Mistake:       	White=1     	---        Inaccurate:     	White=3     	Black=2      OK:         	White=8     	Black=15     Best:        	---       	Black=1} 1/2-1/2

[Event "87th Tata Steel Masters 2025"]
[White "Caruana,Fabiano"]
[Black "Sarana,Alexey"]
[Site "Wijk aan Zee"]
[Round "7.2"]
[Annotator "TA"]
[Result "1/2-1/2"]
[Date "2025.01.25"]
[WhiteElo "2803"]
[BlackElo "2677"]
[PlyCount "121"]
[TimeControl "60"]

{[%evp 21,121,10,10,4,3,0,0,0,14,0,10,0,12,12,8,16,49,48,51,50,51,65,60,64,43,37,46,36,46,29,29,29,50,29,49,41,31,44,60,50,68,72,72,45,43,40,62,60,64,75,66,51,64,46,46,46,45,45,52,34,31,25,54,31,46,30,39,37,25,39,28,29,31,23,22,21,28,22,31,18,53,26,26,26,33,33,39,27,36,27,26,25,27,27,32,17,20,16,17,16,25,0]} 1. c4 {[%emt 0:0:4]} e6 {[%emt 0:0:18]} 2. g3 {[%emt 0:0:19]} Nf6 {[%emt 0:0:55]} 3. Bg2 {[%emt 0:0:24]} d5 {[%emt 0:0:23]} 4. Nf3 {[%emt 0:0:8]} Be7 {[%emt 0:1:36]} 5. O-O {[%emt 0:0:13]} O-O {[%emt 0:0:21]} 6. d4 {[%emt 0:0:7]} dxc4 {[%emt 0:2:32]} 7. Qc2 {[%emt 0:0:15]} a6 {[%emt 0:1:56]} 8. a4 {[%emt 0:0:20]} Bd7 {[%emt 0:0:8]} 9. Qxc4 {[%emt 0:0:21]} Bc6 {[%emt 0:0:30]} 10. Bg5 {[%emt 0:1:33]} Nbd7 {[%emt 0:1:9]} 11. Nc3 {[%emt 0:2:12]} h6 {[%emt 0:1:11]} 12. Bf4 {[%emt 0:0:5] E05: Open Catalan: 5 Nf3 Be7.} Bd6 {[%emt 0:13:32]} 13. Qd3 {[%emt 0:0:23]} Bxf4 {[%emt 0:5:5]} 14. gxf4 {[%emt 0:0:19][%cal Yg3f4,Yf4e5][%mdl 32] The position is equal.} a5 {[%emt 0:0:53]} 15. Kh1 {[%emt 0:10:56]} Ra6 $146 {[%emt 0:4:15]} (15... Bxf3 16. Bxf3 c6 17. Rg1 Kh8 18. e4 Qe7 19. Rg3 Rad8 20. Rag1 Rg8 21. e5 Nh7 22. Qe3 Nb6 23. Be4 Qb4 24. Bxh7 Kxh7 25. Ne4 Qe7 26. f5 {1-0 Abasov,N (2632)-Caruana,F (2782) FIDE World Cup 2023 (8.1)} )16. Rg1 {[%emt 0:14:40]} Rb6 {[%emt 0:11:39]} 17. Ne5 {[%emt 0:11:19]} Nxe5 {[%emt 0:2:52]} 18. fxe5 {[%emt 0:0:12]} Ng4 {[%emt 0:0:10][%cal Rg4f2] [#]} 19. Qg3 {[%emt 0:22:3] And now Bxc6 would win.} Qxd4 {[%emt 0:0:22]} 20. Bxc6 {[%emt 0:0:25]} Nxf2+ {[%emt 0:2:16]} 21. Kg2 {[%emt 0:0:15]} bxc6 {[%emt 0:18:0]} 22. Qxf2 {[%emt 0:9:14]} Qxe5 {[%emt 0:0:15]} ({Of course not} 22... Qxf2+ 23. Kxf2 Rxb2 24. Rg4 $18 (24. Ne4 Rd8 $16 ))23. e4 {[%emt 0:0:21]} Rfb8 {[%emt 0:0:56]} 24. Rab1 {[%emt 0:1:25]} Rb3 {[%emt 0:0:20] [#] Threatens to win with ...Rxc3.} 25. Qc2 {[%emt 0:3:11]} c5 {[%emt 0:14:7]} 26. Kh1 {[%emt 0:1:56]} R3b4 {[%emt 0:1:38]} 27. Rg3 {[%emt 0:7:27][%cal Yg1g3,Yg3f3,Yf3f2][%mdl 32]} c6 {[%emt 0:1:31]} 28. Qg2 {[%emt 0:8:58]} Kh8 {[%emt 0:1:54]} 29. Rf3 {[%emt 0:0:44]} Kg8 {[%emt 0:1:15]} 30. Rf2 {[%emt 0:0:41]} R8b7 {[%emt 0:1:51]} 31. Rg1 {[%emt 0:0:48]} Kh7 {[%emt 0:0:40]} 32. Re1 {[%emt 0:2:2]} Qg5 {[%emt 0:5:46]} 33. Ree2 {[%emt 0:1:26]} Qe5 {[%emt 0:2:17]} 34. Re3 {[%emt 0:0:53][%cal Ye2e3,Ye3g3,Yg3f3][%mdl 32]} Qg5 {[%emt 0:2:31]} 35. Rg3 {[%emt 0:2:57]} Qe5 {[%emt 0:0:2]} 36. Rgf3 {[%emt 0:2:20]} Kg8 {[%emt 0:0:8]} 37. Rd2 {[%emt 0:1:47]} Rd4 {[%emt 0:0:13]} 38. Re2 {[%emt 0:0:46]} Rbd7 {[%emt 0:0:38]} 39. Ref2 {[%emt 0:0:43]} Rd3 {[%emt 0:3:5]} 40. Rxd3 {[%emt 0:2:17]} Rxd3 {[%emt 0:0:2]} 41. Qf1 {[%emt 0:50:58][%csl Yd3,Yf7]} Rd7 {[%emt 0:51:19]} 42. Qe2 {[%emt 0:0:0]} (42. Qa6 {is more complex.} Qg5 43. Qc8+ Rd8 44. Qc7 )Rd4 {[%emt 0:0:0]} 43. Qf3 {[%emt 0:0:0]} Rd7 {[%emt 0:0:0]} 44. Kg2 {[%emt 0:0:0]} f6 {[%emt 0:0:0]} 45. Qg3 {[%emt 0:0:0]} Qxg3+ {[%emt 0:0:0]} 46. hxg3 $14 {[%emt 0:0:0][%cal Ye4e5][%mdl 4096] Endgame KRN-KR} e5 {[%emt 0:0:0]} 47. Rc2 {[%emt 0:0:0]} Rd4 {[%emt 0:0:0]} 48. Kf3 {[%emt 0:0:0]} Kf7 {[%emt 0:0:0]} 49. Rc1 {[%emt 0:0:0]} h5 {[%emt 0:0:0]} 50. Nd1 {[%emt 0:0:0]} Rxa4 {[%emt 0:0:0]} 51. Ne3 {[%emt 0:0:0]} Rb4 {[%emt 0:0:0]} 52. Rxc5 {[%emt 0:0:0]} Rxb2 {[%emt 0:0:0]} 53. Rxa5 {[%emt 0:0:0]} Rb7 {[%emt 0:0:0]} 54. Ra8 {[%emt 0:0:0]} Rc7 {[%emt 0:0:0]} 55. Rh8 {[%emt 0:0:0]} Kg6 {[%emt 0:0:0]} 56. Nc4 {[%emt 0:0:0]} c5 {[%emt 0:0:0]} 57. Rd8 {[%emt 0:0:0]} Kg5 {[%emt 0:0:0]} 58. Rd1 {[%emt 0:0:0]} Rb7 {[%emt 0:0:0]} 59. Rc1 {[%emt 0:0:0]} g6 {[%emt 0:0:0]} 60. Ne3 {[%emt 0:0:0]} Rb5 {[%emt 0:0:0]} 61. Nc4 {[%emt 0:14:13] Weighted Error Value: White=0.07 (flawless) /Black=0.07 (flawless)   Inaccurate:     	White=2     	Black=3      OK:         	White=13    	Black=18     Best:        	White=2     	Black=4} 1/2-1/2

[Event "87th Tata Steel Masters 2025"]
[White "Van Foreest,Jorden"]
[Black "Praggnanandhaa,Rameshbabu"]
[Site "Wijk aan Zee"]
[Round "7.3"]
[Annotator "TA"]
[Result "1/2-1/2"]
[Date "2025.01.25"]
[WhiteElo "2680"]
[BlackElo "2741"]
[PlyCount "71"]
[TimeControl "60"]

{[%evp 9,71,43,47,43,25,39,43,19,31,27,22,29,32,33,27,20,34,41,23,0,0,0,0,0,0,0,0,0,0,7,4,0,0,0,7,11,14,14,10,0,0,0,16,23,25,0,4,0,9,0,63,42,91,92,93,93,93,93,105,105,113,114,114,104]} 1. e4 {[%emt 0:0:7]} c5 {[%emt 0:1:21]} 2. Nf3 {[%emt 0:0:13]} Nc6 {[%emt 0:0:5]} 3. Nc3 {[%emt 0:0:18]} Nf6 {[%emt 0:0:18]} 4. Bb5 {[%emt 0:1:14]} g6 {[%emt 0:1:6]} 5. e5 {[%emt 0:1:16]} Nh5 {[%emt 0:1:25]} 6. O-O {[%emt 0:2:1] B30: Sicilian: 2...Nc6 3 Bb5, lines without ...g6.} Bg7 {[%emt 0:0:52]} 7. Re1 {[%emt 0:1:3]} Nd4 {[%emt 0:1:14]} 8. d3 {[%emt 0:2:18] [#] White is slightly better.} O-O {[%emt 0:0:56]} 9. g4 {[%emt 0:0:34]} d5 {[%emt 0:0:21]} 10. h3 {[%emt 0:0:7]} a6 {[%emt 0:1:31]} 11. Ba4 {[%emt 0:2:2] A sharp opening} Ne6 {[%emt 0:0:22]} 12. gxh5 {[%emt 0:2:28] [#] and Bb3 should not be overlooked} b5 $1 {[%emt 0:0:12]} 13. Bb3 {[%emt 0:2:8]} c4 {[%emt 0:0:23]} 14. h6 {[%emt 0:0:10]} (14. d4 $5 )Bh8 {[%emt 0:0:19]} 15. dxc4 $146 {[%emt 0:0:13]} (15. d4 Qd7 16. Nh2 f6 17. f4 fxe5 18. fxe5 cxb3 19. axb3 b4 20. Na4 Qc6 21. Ng4 {½-½ Kulaots,K (2525)-Stremavicius,T (2544) Oslo Kvisla 2023 (5)} )dxc4 {[%emt 0:0:15]} 16. Qxd8 {[%emt 0:2:46]} Rxd8 {[%emt 0:0:19]} 17. Bxc4 {[%emt 0:0:5]} bxc4 {[%emt 0:0:4]} 18. Be3 {[%emt 0:0:5]} Bb7 {[%emt 0:5:51]} 19. Ng5 {[%emt 0:0:8]} Bxe5 {[%emt 0:3:27]} 20. Nxe6 {[%emt 0:0:20]} fxe6 {[%emt 0:0:8]} 21. Bg5 {[%emt 0:2:6][%csl Ye5,Ye7]} Bxc3 {[%emt 0:0:46]} 22. bxc3 {[%emt 0:0:7]} Kf7 {[%emt 0:0:13] Opposite bishops and equal position} 23. Rab1 {[%emt 0:0:5]} Bd5 {[%emt 0:16:5]} 24. Rb6 {[%emt 0:3:45]} Rdb8 {[%emt 0:11:7]} 25. Reb1 {[%emt 0:0:53]} Rxb6 {[%emt 0:0:6]} 26. Rxb6 $11 {[%emt 0:0:7][%mdl 4096] Endgame KRB-KRB} Ke8 {[%emt 0:0:21]} 27. Kf1 {[%emt 0:12:32]} Kd7 {[%emt 0:1:19]} 28. Ke2 {[%emt 0:0:56]} Kc7 {[%emt 0:9:5]} 29. Rb2 {[%emt 0:4:22]} Kc8 {[%emt 0:15:54]} (29... Kd6 $11 )30. Ke3 {[%emt 0:19:20]} Rb8 {[%emt 0:4:1]} (30... Kd7 $14 )31. Rxb8+ $16 {[%emt 0:10:8] White is better.} Kxb8 {[%emt 0:0:11]} 32. Kd4 {[%emt 0:0:2]} Kc7 {[%emt 0:2:23]} 33. Bxe7 {[%emt 0:0:5]} Kc6 {[%emt 0:3:57]} 34. h4 {[%emt 0:1:2] White is more active.} Bg2 {[%emt 0:3:38]} 35. a3 {[%emt 0:6:30]} Bf1 {[%emt 0:0:28]} 36. Bb4 {[%emt 0:0:3] Weighted Error Value: White=0.04 (flawless) /Black=0.07 (flawless)   Mistake:       	---       	Black=2      OK:         	White=19    	Black=10     Best:        	White=1     	Black=3      Strong:       	---       	Black=1} 1/2-1/2

[Event "87th Tata Steel Masters 2025"]
[White "Giri,Anish"]
[Black "Abdusattorov,Nodirbek"]
[Site "Wijk aan Zee"]
[Round "7.4"]
[Annotator "TA"]
[Result "1/2-1/2"]
[Date "2025.01.25"]
[WhiteElo "2731"]
[BlackElo "2768"]
[PlyCount "61"]
[TimeControl "60"]

{[%evp 16,61,0,-13,16,0,15,-6,17,0,2,-13,12,10,19,16,14,0,4,0,12,0,0,0,0,0,0,0,0,0,0,0,3,0,0,0,0,0,9,4,5,0,8,8,16,0,0,0]} 1. c4 {[%emt 0:0:2]} e5 {[%emt 0:0:27]} 2. g3 {[%emt 0:0:10]} Nf6 {[%emt 0:0:8]} 3. Bg2 {[%emt 0:0:4]} d5 {[%emt 0:0:12]} 4. cxd5 {[%emt 0:0:6]} Nxd5 {[%emt 0:0:8]} 5. Nf3 {[%emt 0:1:37]} Nc6 {[%emt 0:0:11]} 6. O-O {[%emt 0:0:5]} Nb6 {[%emt 0:0:45]} 7. Nc3 {[%emt 0:0:52]} Be7 {[%emt 0:0:39]} 8. Rb1 {[%emt 0:0:48]} O-O {[%emt 0:9:51]} 9. b4 {[%emt 0:3:42] The position is equal.} f6 {[%emt 0:0:9] has lost popularity (9...a6). A29: English Opening: Four Knights Variation with 4 g3.} ({Reject} 9... Bxb4 $6 10. Nxe5 Nxe5 11. Rxb4 $16 )10. d3 {[%emt 0:9:22]} Be6 {[%emt 0:0:28]} 11. b5 {[%emt 0:2:5]} Nd4 {[%emt 0:0:17]} 12. Nd2 {[%emt 0:1:43][%cal Ye2e3]} c6 {[%emt 0:5:13]} 13. bxc6 {[%emt 0:3:35]} Nxc6 {[%emt 0:3:44]} 14. Nc4 $146 {[%emt 0:2:15]} (14. Nf3 Qd7 15. Be3 Nd5 16. Nxd5 Bxd5 17. a4 Rac8 18. Rb5 Bf7 19. Qb1 {½-½ Movsesian,S (2709)-Ragger,M (2572) EU-ch 11th Rijeka 2010 (2)} )Nxc4 {[%emt 0:9:30]} 15. dxc4 {[%emt 0:0:5]} Qxd1 {[%emt 0:10:5]} 16. Rxd1 {[%emt 0:0:8]} Rab8 {[%emt 0:0:3]} 17. Nd5 {[%emt 0:7:57]} Kf7 {[%emt 0:5:19]} 18. Be3 {[%emt 0:10:42]} Rfd8 {[%emt 0:2:33]} 19. f4 {[%emt 0:6:20]} exf4 {[%emt 0:4:18]} 20. gxf4 {[%emt 0:0:21]} Bf5 {[%emt 0:7:5]} 21. Rb5 {[%emt 0:4:23]} a6 {[%emt 0:6:4]} 22. Rb6 {[%emt 0:0:39]} Na5 {[%emt 0:0:31]} 23. Rc1 {[%emt 0:0:43] Black should prevent Nxe7.} Bf8 {[%emt 0:4:42]} 24. Bf2 {[%emt 0:9:7]} Re8 {[%emt 0:3:19]} 25. Bf3 {[%emt 0:1:51]} Rbc8 {[%emt 0:7:4][%cal Yf5e4] Repels Nc7} 26. c5 {[%emt 0:1:12]} Kg8 {[%emt 0:4:8] Black is weak on the dark squares} 27. Kg2 {[%emt 0:2:44][%cal Yg1g2,Yg2g3,Yg3f3][%mdl 32]} Be4 $1 {[%emt 0:0:26]} 28. h4 {[%emt 0:5:22]} h5 {[%emt 0:5:0]} 29. Kg3 {[%emt 0:1:18]} f5 {[%emt 0:0:31]} 30. Nb4 {[%emt 0:4:6]} Bxf3 {[%emt 0:2:12]} 31. Kxf3 {[%emt 0:0:7] An interesting draw.   Weighted Error Value: White=0.05 (flawless) /Black=0.04 (flawless)   OK:         	White=10    	Black=10     Best:        	---       	Black=2      Strong:       	---       	Black=1} 1/2-1/2

[Event "87th Tata Steel Masters 2025"]
[White "Gukesh,Dommaraju"]
[Black "Harikrishna,Pentala"]
[Site "Wijk aan Zee"]
[Round "7.5"]
[Annotator "TA"]
[Result "1-0"]
[Date "2025.01.25"]
[WhiteElo "2777"]
[BlackElo "2695"]
[PlyCount "92"]
[TimeControl "60"]

{[%evp 16,92,7,0,0,0,0,0,0,-14,10,16,20,18,67,51,62,53,47,49,54,42,51,44,27,-15,8,-56,25,6,11,23,68,66,83,69,78,69,81,16,57,44,110,112,611,593,604,588,2220,2057,1475,726,1170,720,706,714,658,344,446,409,411,431,558,510,445,426,476,464,435,384,1131,1177,1038,1038,5624,5581,29962,0,544]} 1. e4 {[%emt 0:0:4]} e6 {[%emt 0:0:6]} 2. d4 {[%emt 0:0:6]} d5 {[%emt 0:0:4]} 3. e5 {[%emt 0:0:8]} c5 {[%emt 0:0:4]} 4. c3 {[%emt 0:0:5]} Nc6 {[%emt 0:0:5]} 5. Nf3 {[%emt 0:0:6]} Bd7 {[%emt 0:0:7]} 6. Be2 {[%emt 0:1:23]} Nge7 {[%emt 0:0:36]} 7. O-O {[%emt 0:0:8]} cxd4 {[%emt 0:1:14]} 8. cxd4 {[%emt 0:0:7]} Nf5 {[%emt 0:0:9]} 9. Nc3 {[%emt 0:3:47]} a6 {[%emt 0:4:10] C02: French: Advance Variation.} 10. Kh1 {[%emt 0:15:58]} Rc8 {[%emt 0:3:30]} 11. Rb1 $5 {[%emt 0:13:37][%mdl 4] Leaves trodden paths.} Qb6 $146 {[%emt 0:20:24][%cal Rc6d4]} (11... b5 12. g4 Nh4 13. Bg5 Be7 14. Be3 Nxf3 15. Bxf3 O-O 16. Be2 f6 17. exf6 Bxf6 18. Qd2 {1-0 Sjugirov,S (2705)-Mekhitarian,K (2559) Titled Tuesday intern op 17th Oct Late blitz 2023 (10)} )12. g4 {[%emt 0:11:52][%cal Yg2g4,Yg4g5,Yg5g6][%mdl 32]} Nfe7 {[%emt 0:0:0][%cal Yc6e5]} (12... Nfxd4 $2 13. Be3 $18 )(12... Ncxd4 $5 13. gxf5 Nxf3 $11 )13. Be3 {[%emt 0:4:57]} h5 {[%emt 0:0:0]} 14. g5 {[%emt 0:12:20]} Nf5 {[%emt 0:11:12] [#]} (14... Qa7 $11 {should be considered.} )15. g6 $1 $14 {[%emt 0:7:33]} f6 {[%emt 0:8:4]} 16. exf6 {[%emt 0:5:51]} gxf6 {[%emt 0:0:9]} 17. Bd3 {[%emt 0:0:0]} Nce7 {[%emt 0:17:10]} 18. Rg1 {[%emt 0:2:39]} Bg7 19. Na4 {[%emt 0:1:56]} Qd6 20. b4 {[%emt 0:1:56]} b6 {Prevents Nc5.} 21. b5 {[%emt 0:8:10]} (21. Bd2 $11 )axb5 {[%emt 0:19:51]} (21... Nxe3 $15 22. fxe3 a5 )22. Bxb5 $11 {[%emt 0:0:13]} Bxb5 {[%emt 0:0:31]} 23. Rxb5 {[%emt 0:0:25]} Nxe3 {[%emt 0:0:24]} 24. fxe3 {[%emt 0:0:0]} Rc6 {[%emt 0:5:58]} 25. Qb3 {[%emt 0:0:0][%cal Ra4b6]} O-O 26. Nxb6 {[%emt 0:3:18] White is more active.} Bh6 {[%emt 0:4:14]} 27. Na4 {[%emt 0:1:41]} ({White should play} 27. Nd2 $16 )Nf5 {[%emt 0:10:21]} 28. Rc5 $1 {[%emt 0:4:6] [#]} Rxc5 {[%emt 0:0:0] White now steadily converts the win.} (28... Bxe3 $2 29. Qb7 Qe7 (29... Rxc5 30. Qh7# )(29... Ne7 $2 30. Rxc6 Rb8 31. Rxd6 $18 )30. Qxc6 $18 )({Black should try} 28... Rfc8 $14 )29. Nxc5 $40 {[%emt 0:5:56][%mdl 128] White goes for the king.} ({Don't do} 29. dxc5 Qb8 $11 )Nxe3 $2 {[%emt 0:0:0][%mdl 8192]} (29... Bxe3 $16 30. Qb7 Qe7 31. Qxe7 Nxe7 )30. Qb7 $18 {[%emt 0:2:38]} Bg7 31. Re1 {[%emt 0:0:0]} Nf5 32. Nxe6 {[%emt 0:2:18] Excellent horsemanship.} Rb8 {[%emt 0:0:0]} 33. Qf7+ {[%emt 0:0:0]} Kh8 {[%emt 0:4:33]} 34. Nxg7 {[%emt 0:3:12]} Nxg7 {[%emt 0:0:0]} 35. Re7 {[%emt 0:0:23][%csl Ge7][%cal Rf7g7]} Rg8 {[%emt 0:0:0]} 36. Rd7 {[%emt 0:5:37]} Qb6 {[%emt 0:2:9]} 37. Rxd5 {[%emt 0:0:42]} Qb1+ {[%emt 0:0:0]} 38. Kg2 {[%emt 0:0:0][%cal Yd5h5]} f5 39. Rc5 {[%emt 0:2:29] Repels Qc2+} Qb2+ {[%emt 0:0:46]} 40. Kf1 {[%emt 0:1:56]} Qa1+ {[%emt 0:12:23]} 41. Kf2 {[%emt 0:6:15]} Qb2+ 42. Kg3 {[%emt 0:1:9] Qf6 would now be deadly.} h4+ $2 (42... Qb8+ 43. Qc7 Rd8 )43. Kf4 $1 {[%emt 0:3:42][%cal Yf7f6]} (43. Kxh4 $2 Qf2+ 44. Kg5 Qe3+ (44... Qxf3 $2 45. Qxg8+ Kxg8 46. Rc8+ $19 )45. Kf6 Ne8+ $19 (45... Qxf3 46. Qxg8+ Kxg8 47. Rc8+ ))(43. Nxh4 Qe2 44. Rxf5 (44. Nxf5 Nxf5+ 45. Rxf5 Rxg6+ 46. Qxg6 Qg2+ 47. Kxg2 $11 )Nxf5+ 45. Qxf5 (45. Nxf5 Rxg6+ 46. Qxg6 Qg2+ 47. Kxg2 $11 )Qe3+ 46. Qf3 (46. Nf3 Rxg6+ 47. Qxg6 Qg1+ 48. Nxg1 $11 )Qg5+ (46... Qg1+ 47. Kh3 $16 )47. Kh3 Re8 $11 )Qb8+ {[%emt 0:3:15]} 44. Re5 {[%emt 0:1:28]} Qd6 {Repels Qf6} 45. Kg5 {[%cal Yg5h6] Kh6! would kill now.} (45. Nxh4 $2 {is the wrong capture.} Qxd4+ 46. Kf3 Qxe5 $19 )Qb8 {[%emt 0:34:5]} 46. Kf4 {[%emt 0:1:0]} (46. Re7 $142 h3 47. Qxf5 Qc8 48. Qf4 (48. Qxc8 Rxc8 49. Ne5 Rf8 $18 )Ne6+ 49. Rxe6 Qd8+ 50. Kh5 (50. Qf6+ Qxf6+ 51. Rxf6 Rg7 52. Rf8+ Rg8 53. Rxg8+ Kxg8 54. Kf6 Kf8 55. g7+ Kg8 )Rg7 51. Qe5 )Qd6 $1 {[%emt 0:2:45] Weighted Error Value: White=0.53/Black=0.89  Loses game:     	---       	Black=1      Mistake:       	White=2     	Black=4      Inaccurate:     	White=1     	Black=2      OK:         	White=8     	Black=10     Best:        	White=5     	Black=3      Strong:       	White=2     	---        Brilliant:      	White=1     	---} 1-0